[Event "Titled Tuesday Blitz May 30 Late 2023"]
[White "Koc, Przemyslaw"]
[Black "Halkias, Stelios"]
[WhiteFideId "1109081"]
[BlackFideId "4201809"]
[WhiteElo "2161"]
[BlackElo "2451"]
[Result "0-1"]
[Round "02"]
[TimeControl "180+2"]
[Date "2023.05.31"]
[WhiteClock "0:00:14"]
[BlackClock "0:00:27"]

1. Nf3 {[%clk 0:03:00]}  Nf6 {[%clk 0:02:59]} 2. g3 {[%clk 0:03:01]}  g6 {[%clk 0:02:59]} 3. b3 {[%clk 0:03:00]}  Bg7 {[%clk 0:02:59]} 4. Bb2 {[%clk 0:03:00]}  O-O {[%clk 0:02:59]} 5. Bg2 {[%clk 0:03:01]}  d6 {[%clk 0:03:00]} 6. d4 {[%clk 0:03:00]}  a5 {[%clk 0:02:57]} 7. Nc3 {[%clk 0:02:58]}  d5 {[%clk 0:02:54]} 8. O-O {[%clk 0:02:56]}  c6 {[%clk 0:02:54]} 9. Re1 {[%clk 0:02:56]}  Bf5 {[%clk 0:02:51]} 10. Nh4 {[%clk 0:02:56]}  Bg4 {[%clk 0:02:50]} 11. h3 {[%clk 0:02:56]}  Bc8 {[%clk 0:02:50]} 12. Kh2 {[%clk 0:02:52]}  Nbd7 {[%clk 0:02:44]} 13. Nf3 {[%clk 0:02:46]}  Re8 {[%clk 0:02:38]} 14. e4 {[%clk 0:02:44]}  dxe4 {[%clk 0:02:36]} 15. Ng5 {[%clk 0:02:41]}  Nd5 {[%clk 0:02:29]} 16. Ngxe4 {[%clk 0:02:38]}  Nxc3 {[%clk 0:02:23]} 17. Bxc3 {[%clk 0:02:36]}  a4 {[%clk 0:02:22]} 18. Qd2 {[%clk 0:02:35]}  Nb6 {[%clk 0:02:16]} 19. Rad1 {[%clk 0:02:16]}  Nd5 {[%clk 0:02:13]} 20. Ba1 {[%clk 0:02:16]}  axb3 {[%clk 0:02:13]} 21. axb3 {[%clk 0:02:16]}  Ra2 {[%clk 0:02:10]} 22. Nc3 {[%clk 0:02:02]}  Rxa1 {[%clk 0:02:07]} 23. Rxa1 {[%clk 0:02:00]}  Nxc3 {[%clk 0:02:07]} 24. Qxc3 {[%clk 0:01:58]}  Bxd4 {[%clk 0:02:07]} 25. Qb4 {[%clk 0:01:48]}  Bxa1 {[%clk 0:02:06]} 26. Rxa1 {[%clk 0:01:49]}  Qd6 {[%clk 0:02:02]} 27. Qb6 {[%clk 0:01:43]}  Qd8 {[%clk 0:01:41]} 28. Qxd8 {[%clk 0:01:39]}  Rxd8 {[%clk 0:01:41]} 29. Ra8 {[%clk 0:01:40]}  Kf8 {[%clk 0:01:32]} 30. b4 {[%clk 0:01:34]}  Ke8 {[%clk 0:01:25]} 31. Rb8 {[%clk 0:01:32]}  Kd7 {[%clk 0:01:25]} 32. c4 {[%clk 0:01:30]}  Kc7 {[%clk 0:01:25]} 33. Ra8 {[%clk 0:01:30]}  Rd4 {[%clk 0:01:22]} 34. Bf1 {[%clk 0:01:27]}  Rd1 {[%clk 0:01:20]} 35. Bg2 {[%clk 0:00:49]}  Rb1 {[%clk 0:01:16]} 36. Ra4 {[%clk 0:00:47]}  Be6 {[%clk 0:01:13]} 37. c5 {[%clk 0:00:48]}  Rb2 {[%clk 0:01:11]} 38. Kg1 {[%clk 0:00:47]}  Bf5 {[%clk 0:00:59]} 39. h4 {[%clk 0:00:43]}  Bc2 {[%clk 0:00:54]} 40. Ra8 {[%clk 0:00:42]}  Rxb4 {[%clk 0:00:53]} 41. Rh8 {[%clk 0:00:40]}  h5 {[%clk 0:00:53]} 42. Rf8 {[%clk 0:00:34]}  Bb3 {[%clk 0:00:51]} 43. Bh3 {[%clk 0:00:34]}  b6 {[%clk 0:00:38]} 44. Rc8+ {[%clk 0:00:32]}  Kb7 {[%clk 0:00:38]} 45. Re8 {[%clk 0:00:32]}  bxc5 {[%clk 0:00:36]} 46. Rxe7+ {[%clk 0:00:32]}  Kb6 {[%clk 0:00:36]} 47. Bc8 {[%clk 0:00:31]}  Bd5 {[%clk 0:00:29]} 48. f4 {[%clk 0:00:25]}  c4 {[%clk 0:00:28]} 49. Kf2 {[%clk 0:00:24]}  Kc5 {[%clk 0:00:29]} 50. f5 {[%clk 0:00:22]}  Rb2+ {[%clk 0:00:28]} 51. Ke3 {[%clk 0:00:22]}  Rb3+ {[%clk 0:00:28]} 52. Kd2 {[%clk 0:00:21]}  Rxg3 {[%clk 0:00:27]} 53. fxg6 {[%clk 0:00:14]}  fxg6 {[%clk 0:00:27]} 54. Rg7 {[%clk 0:00:15]}  Kd4 {[%clk 0:00:27]} 55. Bd7 {[%clk 0:00:14]}  c3+ {[%clk 0:00:27]} 56. Ke1 {[%clk 0:00:14]}  c2 {[%clk 0:00:26]} 57. Kd2 {[%clk 0:00:14]}  Rg2+ {[%clk 0:00:26]} 58. Kc1 {[%clk 0:00:14]}  Kc3 {[%clk 0:00:27]} 0-1


[Site "https://www.chess.com"]

[Event "Titled Tuesday Blitz May 30 Late 2023"]
[White "Thomforde-Toates, Noah"]
[Black "Ladan, Nicholas"]
[WhiteFideId "30951992"]
[BlackFideId "30918855"]
[WhiteElo "2737"]
[BlackElo "2167"]
[Result "1-0"]
[Round "02"]
[TimeControl "180+2"]
[Date "2023.05.31"]
[WhiteClock "0:00:48"]
[BlackClock "0:00:16"]

1. d4 {[%clk 0:03:00]}  d5 {[%clk 0:02:59]} 2. Nc3 {[%clk 0:03:01]}  Nf6 {[%clk 0:02:59]} 3. Bf4 {[%clk 0:03:02]}  Bf5 {[%clk 0:02:56]} 4. e3 {[%clk 0:03:02]}  e6 {[%clk 0:02:56]} 5. Bd3 {[%clk 0:03:02]}  Bd6 {[%clk 0:02:56]} 6. Nf3 {[%clk 0:03:02]}  O-O {[%clk 0:02:54]} 7. O-O {[%clk 0:03:02]}  Bxf4 {[%clk 0:02:51]} 8. exf4 {[%clk 0:03:02]}  c5 {[%clk 0:02:52]} 9. dxc5 {[%clk 0:03:02]}  Qc7 {[%clk 0:02:52]} 10. Bxf5 {[%clk 0:03:02]}  exf5 {[%clk 0:02:51]} 11. Nxd5 {[%clk 0:03:03]}  Nxd5 {[%clk 0:02:50]} 12. Qxd5 {[%clk 0:03:04]}  Na6 {[%clk 0:02:40]} 13. Qxf5 {[%clk 0:03:02]}  Nxc5 {[%clk 0:02:36]} 14. Rfe1 {[%clk 0:03:01]}  Ne6 {[%clk 0:02:34]} 15. g3 {[%clk 0:02:55]}  Rad8 {[%clk 0:02:32]} 16. Rad1 {[%clk 0:02:53]}  Qb6 {[%clk 0:02:24]} 17. b3 {[%clk 0:02:49]}  Qa6 {[%clk 0:02:19]} 18. a4 {[%clk 0:02:44]}  g6 {[%clk 0:02:11]} 19. Qb5 {[%clk 0:02:35]}  Qxb5 {[%clk 0:02:07]} 20. axb5 {[%clk 0:02:36]}  Rc8 {[%clk 0:02:06]} 21. c4 {[%clk 0:02:35]}  Nc5 {[%clk 0:02:04]} 22. Re3 {[%clk 0:02:34]}  Rfe8 {[%clk 0:01:57]} 23. Rxe8+ {[%clk 0:02:33]}  Rxe8 {[%clk 0:01:57]} 24. b4 {[%clk 0:02:34]}  Ne6 {[%clk 0:01:49]} 25. Rd7 {[%clk 0:02:31]}  Rc8 {[%clk 0:01:47]} 26. c5 {[%clk 0:02:30]}  b6 {[%clk 0:01:43]} 27. Rxa7 {[%clk 0:02:21]}  bxc5 {[%clk 0:01:42]} 28. b6 {[%clk 0:02:20]}  Rb8 {[%clk 0:01:35]} 29. b7 {[%clk 0:02:18]}  Kg7 {[%clk 0:01:35]} 30. Ne5 {[%clk 0:02:05]}  cxb4 {[%clk 0:01:28]} 31. Nd3 {[%clk 0:01:27]}  b3 {[%clk 0:01:20]} 32. Kf1 {[%clk 0:01:26]}  Nd8 {[%clk 0:01:19]} 33. Ra8 {[%clk 0:01:24]}  Rxb7 {[%clk 0:01:13]} 34. Rxd8 {[%clk 0:01:23]}  b2 {[%clk 0:01:14]} 35. Nxb2 {[%clk 0:01:23]}  Rxb2 {[%clk 0:01:15]} 36. Rd7 {[%clk 0:01:20]}  h5 {[%clk 0:01:13]} 37. Kg2 {[%clk 0:01:20]}  Kf6 {[%clk 0:01:13]} 38. Rd6+ {[%clk 0:01:19]}  Ke7 {[%clk 0:01:13]} 39. Ra6 {[%clk 0:01:19]}  Rc2 {[%clk 0:01:11]} 40. f5 {[%clk 0:01:19]}  gxf5 {[%clk 0:00:52]} 41. Rh6 {[%clk 0:01:19]}  f4 {[%clk 0:00:48]} 42. Rxh5 {[%clk 0:01:19]}  fxg3 {[%clk 0:00:48]} 43. Kxg3 {[%clk 0:01:17]}  Kf6 {[%clk 0:00:48]} 44. Rh4 {[%clk 0:01:15]}  Rc3+ {[%clk 0:00:47]} 45. Kg2 {[%clk 0:01:13]}  Kg5 {[%clk 0:00:46]} 46. Rd4 {[%clk 0:01:12]}  f5 {[%clk 0:00:45]} 47. f3 {[%clk 0:01:10]}  Rc1 {[%clk 0:00:38]} 48. h4+ {[%clk 0:01:03]}  Kg6 {[%clk 0:00:34]} 49. Kg3 {[%clk 0:01:03]}  Rg1+ {[%clk 0:00:34]} 50. Kf4 {[%clk 0:01:03]}  Rh1 {[%clk 0:00:32]} 51. Rd6+ {[%clk 0:01:03]}  Kg7 {[%clk 0:00:26]} 52. Kg5 {[%clk 0:01:00]}  f4 {[%clk 0:00:22]} 53. Rd7+ {[%clk 0:00:57]}  Kf8 {[%clk 0:00:21]} 54. Rd4 {[%clk 0:00:57]}  Rg1+ {[%clk 0:00:18]} 55. Kf6 {[%clk 0:00:54]}  Kg8 {[%clk 0:00:17]} 56. Rxf4 {[%clk 0:00:53]}  Rh1 {[%clk 0:00:17]} 57. Rg4+ {[%clk 0:00:52]}  Kh7 {[%clk 0:00:17]} 58. f4 {[%clk 0:00:53]}  Re1 {[%clk 0:00:17]} 59. f5 {[%clk 0:00:53]}  Re2 {[%clk 0:00:17]} 60. Rd4 {[%clk 0:00:51]}  Re1 {[%clk 0:00:16]} 61. Kf7 {[%clk 0:00:48]}  Re2 {[%clk 0:00:16]} 62. f6 {[%clk 0:00:49]}  Re1 {[%clk 0:00:16]} 63. Rd5 {[%clk 0:00:49]}  Re2 {[%clk 0:00:16]} 64. Rh5# {[%clk 0:00:48]} 1-0


[Site "https://www.chess.com"]

[Event "Titled Tuesday Blitz May 30 Late 2023"]
[White "Chylewski, Patryk"]
[Black "Sieciechowicz, Marcin"]
[WhiteFideId "1186191"]
[BlackFideId "1130170"]
[WhiteElo "2163"]
[BlackElo "2302"]
[Result "1-0"]
[Round "02"]
[TimeControl "180+2"]
[Date "2023.05.31"]
[WhiteClock "0:00:22"]
[BlackClock "0:00:09"]

1. d4 {[%clk 0:03:00]}  d5 {[%clk 0:02:59]} 2. c4 {[%clk 0:03:01]}  c6 {[%clk 0:03:00]} 3. cxd5 {[%clk 0:03:01]}  cxd5 {[%clk 0:02:59]} 4. Bf4 {[%clk 0:03:02]}  Nf6 {[%clk 0:02:59]} 5. e3 {[%clk 0:03:02]}  Nc6 {[%clk 0:02:59]} 6. Nc3 {[%clk 0:03:02]}  Bf5 {[%clk 0:02:57]} 7. Nf3 {[%clk 0:03:02]}  e6 {[%clk 0:02:57]} 8. Qb3 {[%clk 0:03:02]}  Bb4 {[%clk 0:02:52]} 9. Ne5 {[%clk 0:03:00]}  O-O {[%clk 0:02:34]} 10. Nxc6 {[%clk 0:02:59]}  Bxc3+ {[%clk 0:02:35]} 11. Qxc3 {[%clk 0:02:57]}  bxc6 {[%clk 0:02:35]} 12. Ba6 {[%clk 0:02:55]}  Qb6 {[%clk 0:02:30]} 13. Qa3 {[%clk 0:02:55]}  Ne4 {[%clk 0:02:25]} 14. O-O {[%clk 0:02:55]}  g5 {[%clk 0:02:12]} 15. Bg3 {[%clk 0:02:26]}  c5 {[%clk 0:02:07]} 16. dxc5 {[%clk 0:02:18]}  Qxc5 {[%clk 0:01:54]} 17. Qxc5 {[%clk 0:02:12]}  Nxc5 {[%clk 0:01:55]} 18. Be2 {[%clk 0:02:12]}  Rac8 {[%clk 0:01:48]} 19. Rac1 {[%clk 0:02:10]}  Nd3 {[%clk 0:01:37]} 20. Bxd3 {[%clk 0:02:00]}  Bxd3 {[%clk 0:01:37]} 21. Rfd1 {[%clk 0:01:58]}  Bc2 {[%clk 0:01:16]} 22. Re1 {[%clk 0:01:52]}  f6 {[%clk 0:01:04]} 23. Bd6 {[%clk 0:01:51]}  Rfe8 {[%clk 0:01:04]} 24. b4 {[%clk 0:01:48]}  Bd3 {[%clk 0:01:03]} 25. Rc5 {[%clk 0:01:13]}  Bc4 {[%clk 0:01:03]} 26. a4 {[%clk 0:01:06]}  a6 {[%clk 0:01:02]} 27. Rb1 {[%clk 0:00:58]}  Kf7 {[%clk 0:01:01]} 28. h3 {[%clk 0:00:52]}  e5 {[%clk 0:00:49]} 29. b5 {[%clk 0:00:48]}  axb5 {[%clk 0:00:50]} 30. axb5 {[%clk 0:00:49]}  Ke6 {[%clk 0:00:50]} 31. Bc7 {[%clk 0:00:43]}  Bd3 {[%clk 0:00:20]} 32. Rb3 {[%clk 0:00:37]}  Bc4 {[%clk 0:00:20]} 33. Rb2 {[%clk 0:00:37]}  Kd7 {[%clk 0:00:11]} 34. b6 {[%clk 0:00:36]}  Ra8 {[%clk 0:00:08]} 35. b7 {[%clk 0:00:29]}  Rab8 {[%clk 0:00:09]} 36. Bxb8 {[%clk 0:00:24]}  Rxb8 {[%clk 0:00:09]} 37. Rb6 {[%clk 0:00:22]} 1-0


[Site "https://www.chess.com"]

[Event "Titled Tuesday Blitz May 30 Late 2023"]
[White "Tanenbaum, Zachary"]
[Black "Bruedigam, Martin"]
[WhiteFideId "2060850"]
[BlackFideId "24608033"]
[WhiteElo "2175"]
[BlackElo "2331"]
[Result "0-1"]
[Round "02"]
[TimeControl "180+2"]
[Date "2023.05.31"]
[WhiteClock "0:00:05"]
[BlackClock "0:00:22"]

1. e4 {[%clk 0:03:00]}  c6 {[%clk 0:02:59]} 2. d4 {[%clk 0:03:00]}  d5 {[%clk 0:03:00]} 3. exd5 {[%clk 0:03:01]}  cxd5 {[%clk 0:03:01]} 4. Bd3 {[%clk 0:03:01]}  Nc6 {[%clk 0:03:01]} 5. c3 {[%clk 0:03:02]}  Nf6 {[%clk 0:03:01]} 6. Bf4 {[%clk 0:03:02]}  Bg4 {[%clk 0:03:01]} 7. Qb3 {[%clk 0:03:02]}  Qc8 {[%clk 0:03:02]} 8. Nd2 {[%clk 0:03:02]}  e6 {[%clk 0:03:03]} 9. Ngf3 {[%clk 0:03:02]}  Be7 {[%clk 0:03:03]} 10. O-O {[%clk 0:03:02]}  O-O {[%clk 0:03:04]} 11. Qc2 {[%clk 0:03:02]}  Bh5 {[%clk 0:03:04]} 12. Ne5 {[%clk 0:03:02]}  a6 {[%clk 0:02:53]} 13. a4 {[%clk 0:03:00]}  Bg6 {[%clk 0:02:38]} 14. Nxg6 {[%clk 0:03:00]}  hxg6 {[%clk 0:02:38]} 15. Nf3 {[%clk 0:03:00]}  Nd7 {[%clk 0:02:34]} 16. h4 {[%clk 0:02:45]}  Bf6 {[%clk 0:02:27]} 17. Rfe1 {[%clk 0:02:38]}  Re8 {[%clk 0:02:28]} 18. Bg5 {[%clk 0:02:21]}  Qc7 {[%clk 0:02:07]} 19. Re3 {[%clk 0:01:59]}  Rac8 {[%clk 0:02:06]} 20. Qe2 {[%clk 0:01:52]}  Ne7 {[%clk 0:01:56]} 21. Bxf6 {[%clk 0:01:38]}  gxf6 {[%clk 0:01:52]} 22. Nh2 {[%clk 0:00:53]}  Kg7 {[%clk 0:01:34]} 23. h5 {[%clk 0:00:47]}  Rh8 {[%clk 0:01:34]} 24. Rg3 {[%clk 0:00:43]}  Rxh5 {[%clk 0:01:19]} 25. Qxh5 {[%clk 0:00:07]}  Qxg3 {[%clk 0:01:19]} 26. Qe2 {[%clk 0:00:06]}  Qf4 {[%clk 0:01:08]} 27. g3 {[%clk 0:00:06]}  Qh6 {[%clk 0:01:05]} 28. Ng4 {[%clk 0:00:06]}  Qh5 {[%clk 0:00:59]} 29. Kg2 {[%clk 0:00:05]}  f5 {[%clk 0:00:59]} 30. Ne3 {[%clk 0:00:04]}  Qxe2 {[%clk 0:00:59]} 31. Bxe2 {[%clk 0:00:05]}  a5 {[%clk 0:00:55]} 32. Rh1 {[%clk 0:00:06]}  Nf6 {[%clk 0:00:54]} 33. Bb5 {[%clk 0:00:05]}  Ne4 {[%clk 0:00:53]} 34. f3 {[%clk 0:00:05]}  Nd6 {[%clk 0:00:53]} 35. Bd3 {[%clk 0:00:04]}  Rh8 {[%clk 0:00:47]} 36. Rxh8 {[%clk 0:00:04]}  Kxh8 {[%clk 0:00:48]} 37. Kf2 {[%clk 0:00:05]}  Kg7 {[%clk 0:00:48]} 38. Ke2 {[%clk 0:00:05]}  g5 {[%clk 0:00:49]} 39. Nd1 {[%clk 0:00:04]}  Ng8 {[%clk 0:00:43]} 40. Nf2 {[%clk 0:00:05]}  Nf6 {[%clk 0:00:43]} 41. Bc2 {[%clk 0:00:05]}  Kh6 {[%clk 0:00:35]} 42. Nd3 {[%clk 0:00:05]}  g4 {[%clk 0:00:34]} 43. Ne5 {[%clk 0:00:04]}  gxf3+ {[%clk 0:00:33]} 44. Kxf3 {[%clk 0:00:05]}  Kg7 {[%clk 0:00:34]} 45. Nd3 {[%clk 0:00:05]}  Kf8 {[%clk 0:00:34]} 46. Kf4 {[%clk 0:00:05]}  Ke7 {[%clk 0:00:34]} 47. Nc5 {[%clk 0:00:05]}  b6 {[%clk 0:00:30]} 48. Nb3 {[%clk 0:00:05]}  Nc4 {[%clk 0:00:28]} 49. Bd3 {[%clk 0:00:05]}  Nxb2 {[%clk 0:00:27]} 50. Bb5 {[%clk 0:00:06]}  Ne4 {[%clk 0:00:27]} 51. c4 {[%clk 0:00:03]}  dxc4 {[%clk 0:00:22]} 52. Nc1 {[%clk 0:00:03]}  Nd6 {[%clk 0:00:17]} 53. Bc6 {[%clk 0:00:03]}  Nd3+ {[%clk 0:00:11]} 54. Nxd3 {[%clk 0:00:03]}  cxd3 {[%clk 0:00:12]} 55. Ke3 {[%clk 0:00:03]}  f6 {[%clk 0:00:12]} 56. Kxd3 {[%clk 0:00:04]}  e5 {[%clk 0:00:13]} 57. dxe5 {[%clk 0:00:04]}  fxe5 {[%clk 0:00:14]} 58. Bd5 {[%clk 0:00:04]}  Ne8 {[%clk 0:00:13]} 59. Bc4 {[%clk 0:00:03]}  Nf6 {[%clk 0:00:13]} 60. Bb5 {[%clk 0:00:04]}  Kd6 {[%clk 0:00:13]} 61. Kc4 {[%clk 0:00:04]}  Nd5 {[%clk 0:00:13]} 62. Kd3 {[%clk 0:00:04]}  f4 {[%clk 0:00:12]} 63. g4 {[%clk 0:00:03]}  Ke6 {[%clk 0:00:11]} 64. Ke4 {[%clk 0:00:03]}  Nf6+ {[%clk 0:00:09]} 65. Kf3 {[%clk 0:00:04]}  Nh7 {[%clk 0:00:10]} 66. Bc4+ {[%clk 0:00:03]}  Kf6 {[%clk 0:00:10]} 67. Ke4 {[%clk 0:00:03]}  Ng5+ {[%clk 0:00:11]} 68. Kd5 {[%clk 0:00:04]}  e4 {[%clk 0:00:12]} 69. Kd4 {[%clk 0:00:04]}  e3 {[%clk 0:00:12]} 70. Kd3 {[%clk 0:00:04]}  Nh3 {[%clk 0:00:12]} 71. Ke2 {[%clk 0:00:04]}  Kg5 {[%clk 0:00:12]} 72. Kf3 {[%clk 0:00:04]}  Nf2 {[%clk 0:00:13]} 73. Be6 {[%clk 0:00:04]}  Nd3 {[%clk 0:00:13]} 74. Ke2 {[%clk 0:00:04]}  Ne5 {[%clk 0:00:13]} 75. Ke1 {[%clk 0:00:03]}  Nxg4 {[%clk 0:00:14]} 76. Bc4 {[%clk 0:00:04]}  Ne5 {[%clk 0:00:15]} 77. Bb5 {[%clk 0:00:03]}  Kf5 {[%clk 0:00:16]} 78. Ba6 {[%clk 0:00:03]}  Ke4 {[%clk 0:00:17]} 79. Bb7+ {[%clk 0:00:04]}  Kd4 {[%clk 0:00:17]} 80. Ba6 {[%clk 0:00:04]}  Ke4 {[%clk 0:00:18]} 81. Bb7+ {[%clk 0:00:04]}  Kf5 {[%clk 0:00:18]} 82. Bc8+ {[%clk 0:00:04]}  Kg5 {[%clk 0:00:18]} 83. Ke2 {[%clk 0:00:04]}  Kh4 {[%clk 0:00:19]} 84. Be6 {[%clk 0:00:04]}  Kg3 {[%clk 0:00:20]} 85. Bc8 {[%clk 0:00:04]}  Ng4 {[%clk 0:00:20]} 86. Bd7 {[%clk 0:00:04]}  f3+ {[%clk 0:00:21]} 87. Ke1 {[%clk 0:00:04]}  Kf4 {[%clk 0:00:20]} 88. Kf1 {[%clk 0:00:04]}  Ne5 {[%clk 0:00:20]} 89. Bc8 {[%clk 0:00:04]}  Nd3 {[%clk 0:00:20]} 90. Ba6 {[%clk 0:00:04]}  e2+ {[%clk 0:00:20]} 91. Kg1 {[%clk 0:00:04]}  e1=Q+ {[%clk 0:00:21]} 92. Kh2 {[%clk 0:00:05]}  Qg3+ {[%clk 0:00:21]} 93. Kh1 {[%clk 0:00:05]}  Qg2# {[%clk 0:00:22]} 0-1


[Site "https://www.chess.com"]

[Event "Titled Tuesday Blitz May 30 Late 2023"]
[White "Becerra, Juan David"]
[Black "Jaracz, Pawel"]
[WhiteFideId "4404998"]
[BlackFideId "1102222"]
[WhiteElo "2304"]
[BlackElo "2438"]
[Result "0-1"]
[Round "02"]
[TimeControl "180+2"]
[Date "2023.05.31"]
[WhiteClock "0:00:20"]
[BlackClock "0:00:55"]

1. e4 {[%clk 0:02:51]}  e6 {[%clk 0:02:56]} 2. d4 {[%clk 0:02:49]}  d5 {[%clk 0:02:57]} 3. Nd2 {[%clk 0:02:48]}  c5 {[%clk 0:02:55]} 4. exd5 {[%clk 0:02:36]}  exd5 {[%clk 0:02:55]} 5. Ngf3 {[%clk 0:02:35]}  Nc6 {[%clk 0:02:55]} 6. Be2 {[%clk 0:02:15]}  Nf6 {[%clk 0:02:42]} 7. O-O {[%clk 0:01:52]}  c4 {[%clk 0:02:40]} 8. c3 {[%clk 0:01:46]}  Bd6 {[%clk 0:02:36]} 9. Re1 {[%clk 0:01:46]}  O-O {[%clk 0:02:35]} 10. Nf1 {[%clk 0:01:47]}  h6 {[%clk 0:02:27]} 11. Ng3 {[%clk 0:01:47]}  Be6 {[%clk 0:02:27]} 12. b3 {[%clk 0:01:43]}  b5 {[%clk 0:02:27]} 13. a4 {[%clk 0:01:28]}  b4 {[%clk 0:02:19]} 14. bxc4 {[%clk 0:01:28]}  dxc4 {[%clk 0:02:19]} 15. cxb4 {[%clk 0:01:20]}  Bxb4 {[%clk 0:02:14]} 16. Rf1 {[%clk 0:01:16]}  Qa5 {[%clk 0:02:04]} 17. Be3 {[%clk 0:01:11]}  Rfd8 {[%clk 0:01:59]} 18. Qc1 {[%clk 0:01:10]}  Rac8 {[%clk 0:01:31]} 19. Rd1 {[%clk 0:00:49]}  Bf8 {[%clk 0:01:24]} 20. Bd2 {[%clk 0:00:42]}  Nb4 {[%clk 0:01:22]} 21. Ne5 {[%clk 0:00:38]}  c3 {[%clk 0:01:17]} 22. Bxc3 {[%clk 0:00:37]}  Nfd5 {[%clk 0:01:13]} 23. Bxb4 {[%clk 0:00:30]}  Bxb4 {[%clk 0:01:04]} 24. Nc4 {[%clk 0:00:20]}  Qa6 {[%clk 0:00:58]} 25. Ne4 {[%clk 0:00:20]}  Nc3 {[%clk 0:00:55]} 26. Nxc3 {[%clk 0:00:20]}  Bxc4 {[%clk 0:00:55]} 0-1


[Site "https://www.chess.com"]

[Event "Titled Tuesday Blitz May 30 Late 2023"]
[White "Matinian, Nikita"]
[Black "Vovk, Orest"]
[WhiteFideId "24129100"]
[BlackFideId "14113490"]
[WhiteElo "2422"]
[BlackElo "2215"]
[Result "1-0"]
[Round "02"]
[TimeControl "180+2"]
[Date "2023.05.31"]
[WhiteClock "0:00:09"]
[BlackClock "0:00:02"]

1. e4 {[%clk 0:02:56]}  g5 {[%clk 0:02:59]} 2. d4 {[%clk 0:02:56]}  g4 {[%clk 0:02:57]} 3. Nc3 {[%clk 0:02:50]}  Bg7 {[%clk 0:02:57]} 4. Be3 {[%clk 0:02:47]}  h5 {[%clk 0:02:51]} 5. h3 {[%clk 0:02:44]}  d6 {[%clk 0:02:51]} 6. hxg4 {[%clk 0:02:43]}  hxg4 {[%clk 0:02:52]} 7. Rxh8 {[%clk 0:02:43]}  Bxh8 {[%clk 0:02:53]} 8. Be2 {[%clk 0:02:40]}  Nf6 {[%clk 0:02:45]} 9. e5 {[%clk 0:02:39]}  dxe5 {[%clk 0:02:41]} 10. dxe5 {[%clk 0:02:40]}  Qxd1+ {[%clk 0:02:41]} 11. Rxd1 {[%clk 0:02:40]}  Ng8 {[%clk 0:02:31]} 12. f4 {[%clk 0:02:21]}  gxf3 {[%clk 0:02:27]} 13. Nxf3 {[%clk 0:02:19]}  c6 {[%clk 0:02:22]} 14. Kf2 {[%clk 0:02:12]}  Bg4 {[%clk 0:02:18]} 15. Rh1 {[%clk 0:01:20]}  Bg7 {[%clk 0:02:18]} 16. Rh7 {[%clk 0:01:21]}  Kf8 {[%clk 0:02:15]} 17. Ng5 {[%clk 0:01:14]}  Bf5 {[%clk 0:02:02]} 18. e6 {[%clk 0:01:01]}  fxe6 {[%clk 0:01:37]} 19. Rh4 {[%clk 0:00:48]}  e5 {[%clk 0:01:18]} 20. Bg4 {[%clk 0:00:41]}  Bxg4 {[%clk 0:01:09]} 21. Rxg4 {[%clk 0:00:41]}  Nf6 {[%clk 0:00:53]} 22. Rb4 {[%clk 0:00:35]}  b5 {[%clk 0:00:35]} 23. Ne6+ {[%clk 0:00:35]}  Kf7 {[%clk 0:00:34]} 24. Nc7 {[%clk 0:00:35]}  a5 {[%clk 0:00:35]} 25. Rh4 {[%clk 0:00:24]}  Ra6 {[%clk 0:00:25]} 26. Nxa6 {[%clk 0:00:22]}  Nxa6 {[%clk 0:00:25]} 27. a4 {[%clk 0:00:19]}  Nb4 {[%clk 0:00:12]} 28. axb5 {[%clk 0:00:18]}  cxb5 {[%clk 0:00:13]} 29. Nxb5 {[%clk 0:00:18]}  Nxc2 {[%clk 0:00:13]} 30. Bb6 {[%clk 0:00:16]}  e4 {[%clk 0:00:08]} 31. Bxa5 {[%clk 0:00:14]}  e3+ {[%clk 0:00:07]} 32. Ke2 {[%clk 0:00:13]}  Nd5 {[%clk 0:00:08]} 33. Bc3 {[%clk 0:00:11]}  Bf6 {[%clk 0:00:03]} 34. Rg4 {[%clk 0:00:11]}  Na1 {[%clk 0:00:02]} 35. Bxf6 {[%clk 0:00:10]}  exf6 {[%clk 0:00:02]} 36. Nc3 {[%clk 0:00:09]} 1-0


[Site "https://www.chess.com"]

[Event "Titled Tuesday Blitz May 30 Late 2023"]
[White "Rastbod, Ali"]
[Black "Kaplan, Avi Harrison"]
[WhiteFideId "12567477"]
[BlackFideId "30934559"]
[WhiteElo "2274"]
[BlackElo "1983"]
[Result "1-0"]
[Round "02"]
[TimeControl "180+2"]
[Date "2023.05.31"]
[WhiteClock "0:01:29"]
[BlackClock "0:00:41"]

1. d4 {[%clk 0:03:00]}  d6 {[%clk 0:02:58]} 2. e4 {[%clk 0:02:52]}  Nf6 {[%clk 0:02:58]} 3. Nc3 {[%clk 0:02:51]}  Nbd7 {[%clk 0:02:57]} 4. Nf3 {[%clk 0:02:49]}  e5 {[%clk 0:02:57]} 5. Bc4 {[%clk 0:02:50]}  Be7 {[%clk 0:02:57]} 6. O-O {[%clk 0:02:51]}  O-O {[%clk 0:02:57]} 7. Re1 {[%clk 0:02:51]}  c6 {[%clk 0:02:57]} 8. a4 {[%clk 0:02:52]}  h6 {[%clk 0:02:57]} 9. a5 {[%clk 0:02:51]}  Re8 {[%clk 0:02:57]} 10. d5 {[%clk 0:02:47]}  c5 {[%clk 0:02:55]} 11. a6 {[%clk 0:02:47]}  bxa6 {[%clk 0:02:42]} 12. Bxa6 {[%clk 0:02:48]}  Bxa6 {[%clk 0:02:41]} 13. Rxa6 {[%clk 0:02:49]}  c4 {[%clk 0:02:26]} 14. h3 {[%clk 0:02:39]}  Nc5 {[%clk 0:02:26]} 15. Ra2 {[%clk 0:02:33]}  Qb6 {[%clk 0:02:18]} 16. Be3 {[%clk 0:02:31]}  Rec8 {[%clk 0:02:18]} 17. Na4 {[%clk 0:02:23]}  Qb5 {[%clk 0:01:56]} 18. Bxc5 {[%clk 0:02:20]}  Rxc5 {[%clk 0:01:57]} 19. Nxc5 {[%clk 0:02:19]}  Qxc5 {[%clk 0:01:58]} 20. c3 {[%clk 0:02:18]}  Bd8 {[%clk 0:01:57]} 21. Qe2 {[%clk 0:02:13]}  Bb6 {[%clk 0:01:51]} 22. Nd2 {[%clk 0:02:13]}  Rc8 {[%clk 0:01:45]} 23. Ra4 {[%clk 0:02:14]}  Qb5 {[%clk 0:01:42]} 24. Rb4 {[%clk 0:02:14]}  Qa5 {[%clk 0:01:38]} 25. Nxc4 {[%clk 0:02:13]}  Qc5 {[%clk 0:01:25]} 26. Nxb6 {[%clk 0:02:05]}  axb6 {[%clk 0:01:26]} 27. Qb5 {[%clk 0:02:04]}  Qc7 {[%clk 0:01:17]} 28. Qxb6 {[%clk 0:02:02]}  Qd7 {[%clk 0:01:17]} 29. Qb7 {[%clk 0:02:02]}  Rc7 {[%clk 0:01:17]} 30. Qa8+ {[%clk 0:02:02]}  Kh7 {[%clk 0:01:18]} 31. Qa4 {[%clk 0:01:57]}  Qc8 {[%clk 0:01:14]} 32. Qd1 {[%clk 0:01:57]}  Qa6 {[%clk 0:01:12]} 33. Qe2 {[%clk 0:01:57]}  Qa2 {[%clk 0:01:11]} 34. Rb6 {[%clk 0:01:56]}  Rc4 {[%clk 0:01:04]} 35. Qd3 {[%clk 0:01:48]}  Rc8 {[%clk 0:00:53]} 36. Kh2 {[%clk 0:01:41]}  Ne8 {[%clk 0:00:49]} 37. Qf3 {[%clk 0:01:39]}  Qa7 {[%clk 0:00:48]} 38. Qf5+ {[%clk 0:01:38]}  g6 {[%clk 0:00:46]} 39. Qxc8 {[%clk 0:01:38]}  Qxb6 {[%clk 0:00:45]} 40. Qxe8 {[%clk 0:01:37]}  Kg7 {[%clk 0:00:46]} 41. Kg1 {[%clk 0:01:35]}  h5 {[%clk 0:00:46]} 42. Qc6 {[%clk 0:01:35]}  Qxb2 {[%clk 0:00:45]} 43. Qxd6 {[%clk 0:01:34]}  Qxc3 {[%clk 0:00:45]} 44. Rf1 {[%clk 0:01:35]}  h4 {[%clk 0:00:45]} 45. Qe7 {[%clk 0:01:35]}  g5 {[%clk 0:00:43]} 46. Qxg5+ {[%clk 0:01:33]}  Kh7 {[%clk 0:00:43]} 47. Qxh4+ {[%clk 0:01:33]}  Kg7 {[%clk 0:00:43]} 48. Qg3+ {[%clk 0:01:34]}  Kh7 {[%clk 0:00:43]} 49. Qxc3 {[%clk 0:01:34]}  Kg7 {[%clk 0:00:42]} 50. Qf3 {[%clk 0:01:33]}  Kg8 {[%clk 0:00:42]} 51. Qf6 {[%clk 0:01:34]}  Kf8 {[%clk 0:00:41]} 52. d6 {[%clk 0:01:35]}  Kg8 {[%clk 0:00:40]} 53. d7 {[%clk 0:01:35]}  Kh7 {[%clk 0:00:41]} 54. h4 {[%clk 0:01:28]}  Kg8 {[%clk 0:00:40]} 55. d8=Q+ {[%clk 0:01:29]}  Kh7 {[%clk 0:00:41]} 56. Qdh8# {[%clk 0:01:29]} 1-0


[Site "https://www.chess.com"]